bitfinex/quotes_SOLUSD_20250424
["timestamp","ask_amount","ask_price","bid_price","bid_amount"]
[1745506030159,14.88,149.77,149.73,18.66665785]
[1745506030658,14.88,149.77,149.76,18.66665785]
[1745506031036,14.88,149.77,149.75,18.66665785]
[1745506031231,14.88,149.77,149.73,18.66665785]
[1745506031649,14.88,149.77,149.74,18.66665785]
[1745506031865,14.88,149.77,149.75,18.66665785]
[1745506032366,14.88,149.77,149.74,18.66665785]
[1745506032528,18.66665785,149.76,149.71,18.66665785]
[1745506032927,18.66665785,149.76,149.72,18.66665785]
[1745506033142,33.54665785,149.77,149.72,18.66665785]
[1745506033356,18.66665785,149.76,149.72,18.66665785]
[1745506034148,18.66665785,149.74,149.69,18.66665785]
[1745506034431,18.66665785,149.73,149.69,18.66665785]
[1745506034735,18.66665785,149.73,149.68,18.66665785]
[1745506035257,18.66665785,149.72,149.68,18.66665785]
[1745506035460,18.66665785,149.71,149.67,18.66665785]
[1745506036436,18.66665785,149.72,149.67,18.66665785]
[1745506036753,18.66665785,149.73,149.68,18.66665785]
[1745506036929,18.66665785,149.72,149.68,18.66665785]
[1745506037352,18.66665785,149.73,149.68,18.66665785]
[1745506038956,18.66665785,149.72,149.65,14.43987855]
[1745506039452,18.66665785,149.7,149.66,18.66665785]
[1745506039632,18.66665785,149.7,149.65,18.66665785]
[1745506039828,14.88,149.71,149.68,18.66665785]
[1745506040553,33.54665785,149.71,149.66,18.66665785]
[1745506040745,33.54665785,149.71,149.67,18.66665785]
[1745506040935,14.88,149.71,149.69,18.66665785]
[1745506042311,0.03,149.8,149.7,18.66665785]
[1745506042577,0.03,149.8,149.78,18.66665785]
[1745506043156,0.03,149.8,149.77,18.66665785]
[1745506043380,0.03,149.8,149.78,18.66665785]
[1745506045589,18.69665785,149.8,149.7,26.0]
[1745506045746,18.69665785,149.8,149.73,18.66665785]
[1745506045747,0.03,149.8,149.73,18.66665785]
[1745506045950,0.03,149.8,149.78,18.66665785]
[1745506046778,0.03,149.8,149.73,18.66665785]
[1745506046946,0.03,149.8,149.77,18.66665785]
[1745506047775,0.03,149.8,149.78,18.66665785]
[1745506050270,0.03,149.8,149.77,18.66665785]
[1745506052964,0.03,149.8,149.78,18.66665785]
[1745506053469,0.03,149.8,149.77,18.66665785]
[1745506055586,18.69665785,149.8,149.76,18.66665785]
[1745506055790,18.69665785,149.79,149.7,27.2214906]
[1745506055966,18.66665785,149.78,149.73,18.66665785]
[1745506056156,18.66665785,149.78,149.71,26.0]
[1745506056358,18.66665785,149.76,149.71,18.66665785]
[1745506056560,18.66665785,149.74,149.67,6.6811882]
[1745506056778,18.66665785,149.74,149.69,18.66665785]
[1745506057172,18.66665785,149.74,149.65,8.2018]
[1745506057173,18.66665785,149.72,149.67,18.66665785]
[1745506057374,18.66665785,149.68,149.62,0.063]
[1745506057667,33.82665785,149.67,149.62,18.72965785]
[1745506057878,15.16,149.67,149.64,18.72965785]
[1745506058081,15.16,149.67,149.64,0.063]
[1745506058362,33.82665785,149.67,149.64,0.063]
[1745506058971,15.16,149.67,149.64,0.063]
[1745506059173,15.16,149.75,149.64,26.063]
[1745506059386,15.16,149.75,149.67,6.68136567]
[1745506059773,33.82665785,149.75,149.67,6.68136567]
[1745506060078,15.16,149.75,149.71,18.66665785]
[1745506060285,15.16,149.75,149.72,18.66665785]
[1745506061089,15.16,149.75,149.67,6.68136567]
[1745506061090,15.16,149.75,149.71,18.66665785]
[1745506061295,18.66665785,149.74,149.7,18.66665785]
[1745506061471,18.66665785,149.74,149.69,18.66665785]
[1745506062379,33.82665785,149.75,149.7,18.66665785]
[1745506062763,15.16,149.75,149.71,18.66665785]
[1745506062980,33.82665785,149.75,149.71,18.66665785]
[1745506063167,33.82665785,149.75,149.67,6.68130888]
[1745506063372,45.13380186,149.75,149.7,29.97380186]
[1745506063568,15.16,149.75,149.68,6.68090514]
[1745506063787,15.16,149.75,149.71,29.97380186]
[1745506064389,45.13380186,149.75,149.7,29.97380186]
[1745506065590,15.16,149.75,149.73,29.97380186]
[1745506068315,15.16,149.75,149.72,29.97380186]
[1745506068783,15.16,149.75,149.71,29.97380186]
[1745506069096,45.13380186,149.75,149.7,29.97380186]
[1745506070087,29.97380186,149.74,149.7,29.97380186]
[1745506070299,29.97380186,149.74,149.69,29.97380186]
[1745506070501,29.97380186,149.73,149.67,26.0]
[1745506070692,29.97380186,149.73,149.69,29.97380186]
[1745506071002,29.97380186,149.72,149.68,29.97380186]
[1745506071202,29.97380186,149.72,149.64,9.54698037]
[1745506071400,29.97380186,149.71,149.66,29.97380186]
[1745506071777,29.97380186,149.72,149.67,29.97380186]
[1745506072505,29.97380186,149.72,149.68,29.97380186]
[1745506073012,29.97380186,149.71,149.66,29.97380186]
[1745506073191,29.97380186,149.71,149.67,29.97380186]
[1745506073378,29.97380186,149.71,149.66,29.97380186]
[1745506073578,29.97380186,149.7,149.65,29.97380186]
[1745506073910,29.97380186,149.69,149.64,38.29880186]
[1745506074079,30.11596343,149.68,149.64,0.063]
[1745506074412,29.97380186,149.65,149.64,0.063]
[1745506074904,29.97380186,149.66,149.64,0.063]
[1745506075693,30.11596343,149.65,149.64,0.063]
[1745506076009,0.14216157,149.7,149.64,0.063]
[1745506076181,0.14216157,149.7,149.64,26.063]
[1745506076381,29.97380186,149.71,149.64,26.063]
[1745506076584,29.97380186,149.7,149.65,29.97380186]
[1745506076786,29.97380186,149.69,149.65,29.97380186]
[1745506077003,46.83380186,149.69,149.64,30.03680186]
[1745506077207,46.83380186,149.69,149.65,29.97380186]
[1745506078403,16.86,149.69,149.65,29.97380186]
[1745506078610,16.86,149.69,149.66,29.97380186]
[1745506080209,16.86,149.69,149.65,29.97380186]
[1745506080411,29.97380186,149.68,149.64,0.063]
[1745506080917,29.97380186,149.68,149.64,30.03680186]
[1745506081118,46.83380186,149.69,149.64,30.03680186]
[1745506081490,46.83380186,149.69,149.65,29.97380186]
[1745506083107,16.86,149.69,149.65,29.97380186]
[1745506083317,16.86,149.69,149.66,29.97380186]
[1745506084709,16.72780137,149.69,149.66,29.97380186]
[1745506085017,16.72780137,149.69,149.64,6.74551671]
[1745506085220,16.72780137,149.69,149.66,29.97380186]
[1745506085502,35.47237428,149.69,149.64,0.063]
[1745506085705,35.47237428,149.69,149.65,18.74457291]
[1745506085882,35.47237428,149.69,149.64,0.063]
[1745506085883,35.47237428,149.69,149.64,18.80757291]
[1745506086087,18.74457291,149.67,149.64,0.063]
[1745506086285,18.74457291,149.65,149.64,0.063]
[1745506086519,18.88673448,149.65,149.64,0.063]
[1745506088012,0.14216157,149.65,149.64,0.063]
[1745506088218,18.88673448,149.65,149.64,0.063]
[1745506090417,37.53638334,149.65,149.64,0.063]
[1745506090614,70.21864194,149.65,149.64,0.063]
[1745506093692,63.53638334,149.65,149.64,0.063]
[1745506094108,70.21864194,149.65,149.64,0.063]
[1745506094511,63.53638334,149.65,149.64,0.063]
[1745506094719,79.67422177,149.65,149.64,0.063]
[1745506095102,86.49864194,149.65,149.64,0.063]
[1745506097624,60.49864194,149.65,149.64,0.063]
[1745506097923,44.79181043,149.63,149.62,0.063]
[1745506098221,63.53638334,149.63,149.62,0.063]
[1745506098605,70.21953511,149.63,149.62,0.063]
[1745506098802,44.21953511,149.63,149.62,0.063]
[1745506100635,26.0,149.6,149.59,0.063]
[1745506100934,44.88673448,149.6,149.59,0.063]
[1745506101230,63.53638334,149.6,149.59,0.063]
[1745506101403,88.96544822,149.6,149.59,0.063]
[1745506101601,63.53638334,149.6,149.59,0.063]
[1745506102022,63.53638334,149.6,149.58,0.063]
[1745506102023,0.14216157,149.59,149.58,0.063]
[1745506102232,72.58095625,149.59,149.57,0.063]
[1745506102408,37.53638334,149.58,149.57,0.063]
[1745506102930,44.22176908,149.58,149.57,0.063]
[1745506103421,37.53638334,149.58,149.57,0.063]
[1745506104615,44.22176908,149.58,149.57,0.063]
[1745506104831,37.53638334,149.58,149.57,0.063]
[1745506105410,18.79181043,149.58,149.57,0.063]
[1745506105851,37.53638334,149.58,149.57,0.063]
[1745506106513,18.79181043,149.58,149.57,0.063]
[1745506106732,37.53638334,149.58,149.57,0.063]
[1745506107510,16.3,149.59,149.57,0.063]
[1745506107714,35.04457291,149.59,149.57,0.063]
[1745506107929,18.74457291,149.58,149.57,0.063]
[1745506109023,18.88673448,149.58,149.57,0.063]
[1745506109935,37.53638334,149.58,149.57,0.063]
[1745506110324,44.22176908,149.58,149.57,0.063]
[1745506111128,37.53638334,149.58,149.57,0.063]
[1745506111443,70.22176908,149.58,149.57,0.063]
[1745506114130,63.53638334,149.56,149.55,0.063]
[1745506114536,68.76497796,149.56,149.55,0.063]
[1745506114929,72.07714329,149.56,149.55,0.063]
[1745506115534,18.79181043,149.55,149.53,0.063]
[1745506115733,37.53638334,149.54,149.53,0.063]
[1745506117132,18.64964886,149.54,149.53,0.063]
[1745506117463,18.74457291,149.54,149.53,0.063]
[1745506119038,44.74457291,149.56,149.53,0.063]
[1745506119241,18.74457291,149.54,149.53,0.063]
[1745506119951,18.74457291,149.55,149.53,0.063]
[1745506120760,18.74457291,149.57,149.53,0.063]
[1745506121053,15.7,149.55,149.53,1.6949]
[1745506121443,15.7,149.55,149.53,20.43947291]
[1745506121760,15.7,149.55,149.54,18.74457291]
[1745506122148,15.7,149.55,149.53,20.43947291]
[1745506122463,15.7,149.55,149.54,18.74457291]
[1745506123956,15.7,149.55,149.53,20.43947291]
[1745506126368,15.7,149.55,149.54,18.74457291]
[1745506127437,15.7,149.55,149.53,20.43947291]
[1745506128660,15.7,149.55,149.53,1.6949]
[1745506129041,34.44457291,149.55,149.53,1.6949]
[1745506129241,15.7,149.55,149.53,1.6949]
[1745506130064,15.7,149.55,149.54,18.74457291]
[1745506130458,15.7,149.6,149.57,26.0]
[1745506130636,15.7,149.6,149.59,18.74457291]
[1745506130831,0.03,149.64,149.59,20.29447291]
[1745506131039,0.03,149.64,149.63,18.74457291]
[1745506131245,0.03,149.64,149.62,18.74457291]
[1745506131835,0.03,149.64,149.63,18.74457291]
[1745506132261,0.03,149.64,149.62,18.74457291]
[1745506132448,0.03,149.64,149.63,18.74457291]
[1745506133379,0.03,149.64,149.62,18.74457291]
[1745506133546,0.03,149.64,149.63,18.74457291]
[1745506133951,0.03,149.64,149.62,18.74457291]
[1745506134242,18.77457291,149.64,149.59,1.5499]
[1745506134460,18.77457291,149.64,149.59,20.29447291]
[1745506134971,0.03,149.64,149.6,18.74457291]
[1745506139368,0.03,149.64,149.61,18.74457291]
[1745506140342,18.74457291,149.62,149.56,18.74457291]
[1745506140542,18.74457291,149.6,149.55,20.38127291]
[1745506140768,18.74457291,149.63,149.58,18.74457291]
[1745506141271,0.17216157,149.64,149.59,18.74457291]
[1745506141441,0.17216157,149.64,149.6,18.74457291]
[1745506141442,18.77457291,149.64,149.6,18.74457291]
[1745506141647,0.03,149.64,149.61,18.74457291]
[1745506141871,0.03,149.64,149.6,18.74457291]
[1745506142456,18.77457291,149.64,149.6,18.74457291]
[1745506142656,0.03,149.64,149.61,18.74457291]
[1745506142945,0.03,149.64,149.6,18.74457291]
[1745506143145,0.03,149.64,149.61,18.74457291]
[1745506144556,0.03,149.64,149.63,18.74457291]
[1745506146358,0.03,149.64,149.63,25.42772468]
[1745506147170,15.7,149.68,149.63,105.52982588]
[1745506147358,0.03,149.71,149.67,18.74457291]
[1745506147666,0.03,149.71,149.69,18.74457291]
[1745506147858,0.03,149.71,149.7,18.74457291]
[1745506148061,0.03,149.71,149.69,18.74457291]
[1745506149062,18.77457291,149.71,149.63,32.68308383]
[1745506149380,18.74457291,149.69,149.62,8.237554]
[1745506149678,18.74457291,149.67,149.62,20.29867291]
[1745506149872,15.7,149.67,149.63,18.74457291]
[1745506150897,15.7,149.67,149.62,1.5541]
[1745506151061,15.7,149.67,149.62,8.23769492]
[1745506151388,15.7,149.67,149.66,18.74457291]
[1745506151851,15.7,149.67,149.62,8.23769492]
[1745506152055,15.7,149.67,149.66,18.74457291]
[1745506152681,15.7,149.67,149.64,18.74457291]
[1745506153474,15.7,149.67,149.62,8.23761122]
[1745506153779,15.7,149.67,149.65,18.74457291]
[1745506153955,15.7,149.67,149.64,18.74457291]
[1745506154157,15.7,149.67,149.65,18.74457291]
[1745506154356,15.7,149.67,149.66,18.74457291]
[1745506159393,15.7,149.67,149.64,18.74457291]
[1745506159568,15.7,149.67,149.66,18.74457291]
[1745506162000,15.7,149.67,149.66,25.42638501]
[1745506162177,0.03,149.71,149.66,70.17095792]
[1745506162379,0.03,149.71,149.7,18.74457291]
[1745506163389,0.03,149.71,149.7,25.42459963]
[1745506163977,0.03,149.71,149.7,18.74457291]
[1745506165983,0.03,149.71,149.69,18.74457291]
[1745506166898,0.03,149.71,149.7,18.74457291]
[1745506167097,0.03,149.71,149.69,18.74457291]
[1745506167797,0.03,149.71,149.66,51.42636235]
[1745506168103,0.03,149.71,149.69,18.74457291]
[1745506168603,0.03,149.71,149.7,18.74457291]
[1745506172586,0.03,149.71,149.7,25.42459963]
[1745506173805,0.03,149.71,149.7,18.74457291]
[1745506174692,0.03,149.71,149.69,26.0]
[1745506174890,0.03,149.71,149.7,18.74457291]
[1745506179198,0.03,149.71,149.7,25.42459963]
[1745506179398,0.03,149.73,149.72,26.0]
[1745506179603,0.03,149.73,149.72,65.10584582]
[1745506180320,0.03,149.73,149.72,83.75549468]
[1745506180501,0.03,149.73,149.72,90.43462906]
[1745506181916,0.03,149.74,149.72,90.43462906]
[1745506182114,0.03,149.74,149.73,37.48914582]
[1745506183017,0.03,149.74,149.73,44.16783412]
[1745506183590,0.03,149.74,149.73,62.81748298]
[1745506183795,0.03,149.76,149.75,26.0]
[1745506184106,0.03,149.79,149.75,64.72923812]
[1745506184289,0.03,149.79,149.78,18.74457291]
[1745506185619,0.03,149.79,149.77,18.74457291]
[1745506186311,0.03,149.79,149.78,18.74457291]
[1745506189633,0.03,149.8,149.78,71.69170462]
[1745506189835,0.03,149.8,149.79,64.29158492]
[1745506190132,0.03,149.85,149.83,26.0]
[1745506190362,0.03,149.85,149.84,18.74457291]
[1745506190839,0.03,149.85,149.82,26.0]
[1745506191132,0.03,149.85,149.84,18.74457291]
[1745506193133,0.03,149.85,149.84,25.41835828]
[1745506193426,0.03,149.85,149.84,18.74457291]
[1745506193624,0.03,149.85,149.84,25.41835828]
[1745506194346,0.03,149.85,149.84,51.41835828]
[1745506194511,0.03,149.85,149.84,76.12780714]
[1745506194709,0.03,149.86,149.85,1.587]
[1745506194904,0.03,149.86,149.85,20.33157291]
[1745506196531,0.03,149.86,149.85,27.00491291]
[1745506197031,0.03,149.86,149.85,45.74948582]
[1745506197617,0.03,149.86,149.85,64.39913468]
[1745506198118,0.03,149.88,149.87,0.14216157]
[1745506198330,18.77457291,149.99,149.87,0.14216157]
[1745506198331,14.92,149.98,149.89,44.64964886]
[1745506198506,14.92,149.98,149.89,70.20794248]
[1745506198712,14.92,149.98,149.89,71.42788472]
[1745506199535,33.66457291,149.98,149.89,71.28572315]
[1745506199942,14.92,149.98,149.89,71.28572315]
[1745506200143,0.03,149.92,149.89,71.28572315]
[1745506200844,0.03,149.92,149.89,45.96451515]
[1745506201015,0.03,149.92,149.89,19.96451515]
[1745506201448,0.03,149.92,149.89,44.74457291]
[1745506201950,0.03,149.92,149.89,51.41613205]
[1745506202313,0.03,149.92,149.91,26.0]
[1745506202628,0.03,149.96,149.93,6.8119408]
[1745506202834,0.03,149.96,149.94,18.64964886]
[1745506203037,0.03,149.96,149.95,18.74457291]
[1745506203345,0.03,149.99,149.95,44.74457291]
[1745506203539,0.03,149.99,149.98,18.74457291]
[1745506204836,0.03,149.99,149.98,25.41212858]
[1745506205251,0.03,149.99,149.98,18.74457291]
[1745506206047,0.03,149.99,149.98,51.41212858]
[1745506206945,0.03,149.99,149.98,44.74457291]
[1745506207350,0.03,149.99,149.98,51.41212858]
[1745506207743,0.03,149.99,149.98,44.06177744]
[1745506208351,0.03,150.01,150.0,18.79181043]
[1745506208527,0.03,150.06,150.03,26.0]
[1745506208731,0.03,150.06,150.05,18.74457291]
[1745506210141,0.03,150.06,150.05,25.40901809]
[1745506211065,0.03,150.06,150.05,70.05866695]
[1745506211228,0.03,150.06,150.05,51.40901809]
[1745506212257,0.03,150.06,150.05,44.05866695]
[1745506212661,0.03,150.06,150.05,44.20082852]
[1745506212952,0.03,150.06,150.05,45.41946992]
[1745506213533,0.03,150.14,150.05,54.42296992]
[1745506213738,0.03,150.14,150.12,18.74457291]
[1745506213932,0.03,150.14,150.08,44.74457291]
[1745506214154,0.03,150.14,150.12,18.74457291]
[1745506214964,30.0,150.13,150.12,18.74457291]
[1745506215436,30.0,150.13,150.1,6.66207649]
[1745506215642,30.0,150.13,150.12,44.74457291]
[1745506215942,30.0,150.13,150.12,63.39422177]
[1745506216143,0.03,150.14,150.12,44.74457291]
[1745506216350,0.03,150.14,150.13,18.74457291]
[1745506217065,0.03,150.14,150.13,25.4054668]
[1745506217472,0.03,150.14,150.12,32.66119561]
[1745506217640,0.03,150.14,150.13,18.74457291]
[1745506218367,0.03,150.14,150.13,18.74457291]
[1745506218542,0.03,150.14,150.12,32.66119561]
[1745506218747,0.03,150.14,150.13,18.74457291]
[1745506218973,0.03,150.14,150.13,25.4054668]
[1745506222275,0.03,150.14,150.13,6.66089389]
[1745506222465,0.03,150.14,150.13,31.8288668]
[1745506222667,0.03,150.14,150.13,18.74457291]
[1745506222880,0.03,150.14,150.13,26.0]
[1745506223486,0.03,150.14,150.13,44.74457291]
[1745506223654,0.03,150.14,150.13,26.0]
[1745506224080,0.03,150.14,150.13,44.74457291]
[1745506224454,0.03,150.14,150.13,51.4054668]
[1745506229658,0.03,150.14,150.13,90.15984216]
[1745506230078,0.918837,150.17,150.16,26.0]
[1745506230282,0.918837,150.17,150.16,44.74457291]
[1745506230784,0.918837,150.17,150.16,64.75413202]
[1745506233659,41.66050991,150.17,150.16,30.0]
[1745506235175,41.80267148,150.17,150.16,30.0]
[1745506236011,60.45232034,150.17,150.16,28.3334]
[1745506236160,41.66050991,150.17,150.14,29.97]
[1745506236366,18.74457291,150.15,150.14,29.97]
[1745506236559,22.915937,150.17,150.14,29.97]
[1745506236766,18.74457291,150.16,150.14,29.97]
[1745506237504,18.74457291,150.15,150.14,29.97]
[1745506238875,18.88673448,150.15,150.14,29.97]
[1745506239193,37.63130739,150.15,150.14,29.97]
[1745506239402,37.48914582,150.15,150.14,29.97]
[1745506239574,18.88673448,150.15,150.14,29.97]
[1745506240605,22.915937,150.17,150.14,29.97]
[1745506240777,18.74457291,150.15,150.14,29.97]
[1745506241400,22.915937,150.17,150.14,29.97]
[1745506241580,18.74457291,150.16,150.14,29.97]
[1745506241909,22.915937,150.17,150.14,29.97]
[1745506242077,18.74457291,150.16,150.14,29.97]
[1745506242696,16.738837,150.17,150.14,29.97]
[1745506243408,35.48340991,150.17,150.14,29.97]
[1745506243902,16.738837,150.17,150.14,29.97]
[1745506244610,16.738837,150.17,150.14,36.63038186]
[1745506244999,16.738837,150.17,150.15,18.74457291]
[1745506245200,16.738837,150.17,150.16,18.74457291]
[1745506245502,0.918837,150.17,150.15,18.74457291]
[1745506245705,0.918837,150.17,150.16,18.74457291]
[1745506246298,0.03,150.21,150.16,37.53638334]
[1745506246501,0.03,150.21,150.2,18.74457291]
[1745506246706,1e-08,150.21,150.2,56.28095625]
[1745506247217,1e-08,150.21,150.2,64.15617024]
[1745506247388,1e-08,150.21,150.2,45.41159733]
[1745506248188,1e-08,150.21,150.2,26.66702442]
[1745506248403,1e-08,150.21,150.2,45.41159733]
[1745506249011,1e-08,150.24,150.22,6.6569032]
[1745506249199,1e-08,150.24,150.23,18.74457291]
[1745506249404,1e-08,150.24,150.23,59.99202988]
[1745506250521,1e-08,150.24,150.23,33.99202988]
[1745506250695,1e-08,150.24,150.23,86.77587019]
[1745506250892,1e-08,150.24,150.23,117.99305146]
[1745506251095,1e-08,150.24,150.23,124.64951155]
[1745506251711,15.85,150.33,150.27,26.0]
[1745506251916,15.85,150.33,150.3,33.99202988]
[1745506252416,0.03,150.33,150.3,33.99202988]
[1745506252600,0.03,150.33,150.29,33.99202988]
[1745506253010,0.03,150.33,150.3,33.99202988]
[1745506254016,0.03,150.33,150.3,40.64526015]
[1745506254316,0.03,150.33,150.3,33.99202988]
[1745506254619,0.03,150.33,150.29,33.99202988]
[1745506254991,0.03,150.33,150.3,33.99202988]
[1745506258220,0.03,150.33,150.3,40.64537452]
[1745506258393,0.03,150.33,150.3,6.65334464]
[1745506258599,0.03,150.33,150.3,33.99202988]
[1745506259013,0.03,150.33,150.31,33.99202988]
[1745506259804,0.03,150.33,150.32,33.99202988]
[1745506260606,0.03,150.33,150.3,26.0]
[1745506260799,33.99202988,150.32,150.27,66.6467181]
[1745506261503,34.02202988,150.33,150.28,33.99202988]
[1745506261698,33.99202988,150.29,150.23,31.21718127]
[1745506261912,33.99202988,150.28,150.25,30.0]
[1745506262114,33.99202988,150.29,150.25,30.0]
[1745506262803,33.99202988,150.3,150.25,63.99202988]
[1745506263121,33.99202988,150.29,150.25,30.0]
[1745506264028,33.99202988,150.28,150.25,30.0]
[1745506264198,33.99202988,150.26,150.18,6.65867625]
[1745506264401,33.99202988,150.22,150.2,30.0]
[1745506264708,1.5517,150.28,150.21,33.99202988]
[1745506265030,1.5517,150.28,150.22,33.99202988]
[1745506265197,33.99202988,150.28,150.23,33.99202988]
[1745506265399,33.99202988,150.28,150.24,33.99202988]
[1745506265616,16.34,150.3,150.27,33.99202988]
[1745506265922,6.1127,150.33,150.29,33.99202988]
[1745506266113,0.03,150.33,150.29,33.99202988]
[1745506266311,34.02202988,150.33,150.29,33.99202988]
[1745506266524,34.02202988,150.33,150.25,1.6613]
[1745506266833,33.99202988,150.32,150.28,33.99202988]
[1745506267005,34.02202988,150.33,150.28,33.99202988]
[1745506267724,0.03,150.33,150.32,93.98405976]
[1745506267928,0.1,150.35,150.32,95.63455976]
[1745506268221,0.1,150.35,150.34,59.99202988]
[1745506268923,0.1,150.35,150.34,66.6436196]
[1745506269137,0.1,150.35,150.34,59.29326846]
[1745506269303,0.918837,150.47,150.41,33.99202988]
[1745506269499,33.99202988,150.45,150.37,26.0]
[1745506269809,33.99202988,150.45,150.4,33.99202988]
[1745506270325,33.99202988,150.44,150.36,26.0]
[1745506270537,33.99202988,150.42,150.37,33.99202988]
[1745506270823,33.99202988,150.41,150.36,26.0]
[1745506271039,33.99202988,150.42,150.37,33.99202988]
[1745506271332,33.99202988,150.42,150.38,33.99202988]
[1745506271525,33.99202988,150.42,150.37,33.99202988]
[1745506271701,0.03,150.4,150.37,33.99202988]
[1745506272027,0.03,150.4,150.34,27.21629069]
[1745506272231,0.03,150.4,150.34,1.21629069]
[1745506272542,33.99202988,150.36,150.31,33.99202988]
[1745506272744,33.99202988,150.36,150.3,26.0]
[1745506272911,33.99202988,150.35,150.31,33.99202988]
[1745506273110,6.146,150.39,150.32,33.99202988]
[1745506273311,33.99202988,150.36,150.3,6.65333542]
[1745506273570,6.146,150.39,150.32,33.99202988]
[1745506273714,33.99202988,150.37,150.32,33.99202988]
[1745506273904,33.99202988,150.36,150.32,33.99202988]
[1745506274106,6.146,150.39,150.33,33.99202988]
[1745506274107,33.99202988,150.37,150.33,33.99202988]
[1745506274411,33.99202988,150.39,150.35,33.99202988]
[1745506274628,34.02202988,150.4,150.36,33.99202988]
[1745506274835,0.03,150.4,150.36,33.99202988]
[1745506275139,0.03,150.4,150.39,33.99202988]
[1745506276946,0.03,150.4,150.39,40.64140816]
[1745506277534,0.918837,150.47,150.4,19.79181043]
[1745506277838,0.918837,150.47,150.46,33.99202988]
[1745506278618,0.918837,150.47,150.46,36.73995051]
[1745506278822,0.03,150.49,150.48,26.0]
[1745506279020,0.03,150.49,150.48,100.62946114]
[1745506279314,0.03,150.49,150.48,108.38402024]
[1745506280140,0.03,150.49,150.48,67.85259036]
[1745506281239,0.03,150.49,150.48,101.84462024]
[1745506281452,0.03,150.49,150.48,27.2151591]
[1745506281753,0.03,150.49,150.44,6.5899]
[1745506282055,0.03,150.49,150.46,33.99202988]
[1745506282456,0.03,150.49,150.48,33.99202988]
[1745506283034,0.03,150.49,150.48,40.63743126]
[1745506283255,0.03,150.49,150.48,74.62946114]
[1745506283728,0.03,150.49,150.45,30.0]
[1745506283966,0.03,150.49,150.47,33.99202988]
[1745506284146,0.03,150.49,150.48,33.99202988]
[1745506284463,0.03,150.49,150.48,67.98405976]
[1745506284643,0.03,150.49,150.48,33.99202988]
[1745506284839,0.03,150.49,150.48,67.98405976]
[1745506285062,0.03,150.49,150.48,74.62946114]
[1745506285361,0.03,150.49,150.48,101.84462024]
[1745506286859,0.03,150.49,150.48,120.63643067]
[1745506287260,0.03,150.49,150.48,101.84462024]
[1745506287557,0.03,150.49,150.48,61.20718898]
[1745506287759,0.03,150.49,150.48,35.20718898]
[1745506287969,0.03,150.49,150.48,41.85259036]
[1745506288588,0.03,150.49,150.48,101.84462024]
[1745506289136,0.03,150.49,150.48,67.85259036]
[1745506289567,0.03,150.49,150.48,101.84462024]
[1745506289869,0.03,150.49,150.48,26.65237091]
[1745506290080,0.03,150.49,150.48,94.63643067]
[1745506290268,0.03,150.49,150.48,75.84462024]
[1745506290776,0.03,150.49,150.48,94.63643067]
[1745506290977,0.03,150.56,150.55,33.99202988]
[1745506291154,0.03,150.56,150.54,33.99202988]
[1745506291349,0.03,150.56,150.52,33.99202988]
[1745506291675,33.99202988,150.55,150.48,1.2151591]
[1745506291967,33.99202988,150.54,150.49,33.99202988]
[1745506292166,0.03,150.56,150.53,33.99202988]
[1745506292588,0.03,150.56,150.52,33.99202988]
[1745506292755,33.99202988,150.55,150.5,33.99202988]
[1745506293152,0.03,150.56,150.51,33.99202988]
[1745506293475,34.02202988,150.56,150.51,33.99202988]
[1745506294475,33.99202988,150.55,150.5,33.99202988]
[1745506294681,0.03,150.56,150.52,33.99202988]
[1745506295154,0.03,150.56,150.55,33.99202988]
[1745506295571,0.03,150.56,150.54,33.99202988]
[1745506296276,0.03,150.56,150.55,33.99202988]
[1745506296577,0.03,150.56,150.53,1.21475548]
[1745506296764,0.03,150.56,150.54,33.99202988]